fUST/lending_fUST_20250415
["ID","MTS","AMOUNT","RATE_DAILY","PERIOD"]
[358084082,1744695931193,-1407.38,0.00045723,31]
[358084083,1744695931240,-1407.38,0.00045723,31]
[358084084,1744695931288,-1407.38,0.00045723,31]
[358084085,1744695931335,-1407.38,0.00045723,120]
[358084086,1744695931382,-1407.38,0.00045723,120]
[358084087,1744695931427,-1407.38,0.00045723,120]
[358084088,1744695931473,-1407.38,0.00045723,120]
[358084089,1744695931519,-1407.38,0.00045723,120]
[358084090,1744695931564,-1407.38,0.00045723,120]
[358084091,1744695931611,-1407.38,0.00045723,120]
[358084092,1744695931657,-1407.38,0.00045723,120]
[358084093,1744695931705,-1407.38,0.00045723,120]
[358084094,1744695931756,-1407.38,0.00045723,120]
[358084095,1744695931803,-1407.38,0.00045723,120]
[358084096,1744695931852,-1407.38,0.00045723,120]
[358084097,1744695931899,-500.0,0.00045723,31]
[358084098,1744695931946,-1407.38,0.00045723,120]
[358084099,1744695932186,-500.0,0.00045723,31]
[358084100,1744695932237,-1407.56,0.00045723,120]
[358084101,1744695932284,-500.0,0.00045723,31]
[358084102,1744695932330,-500.0,0.00045723,31]
[358084103,1744695932375,-500.0,0.00045723,31]
[358084104,1744695932420,-500.0,0.00045723,31]
[358084105,1744695932468,-500.0,0.00045723,31]
[358084106,1744695932515,-500.0,0.00045723,31]
[358084107,1744695932560,-500.0,0.00045723,31]
[358084108,1744695932606,-500.0,0.00045723,31]
[358084109,1744695932652,-322.1,0.00045723,120]
[358084110,1744695932698,-500.0,0.00045723,31]
[358084111,1744695932744,-500.0,0.00045723,31]
[358084112,1744695932791,-500.0,0.00045723,31]
[358084113,1744695932837,-500.0,0.00045723,31]
[358084114,1744695932882,-500.0,0.00045723,31]
[358084115,1744695932926,-500.0,0.00045723,31]
[358084116,1744695932970,-500.0,0.00045723,31]
[358084117,1744695933015,-500.0,0.00045723,31]
[358084118,1744695933060,-472.21345487,0.00045723,31]
[358084119,1744695933113,-1039.01,0.00045723,31]
[358084120,1744695933161,-1039.01,0.00045723,31]
[358084121,1744695933208,-1039.01,0.00045723,31]
[358084122,1744695933256,-1039.01,0.00045723,31]
[358084123,1744695933304,-1039.01,0.00045723,31]
[358084124,1744695933352,-1039.01,0.00045723,31]
[358084125,1744695933400,-1039.01,0.00045723,31]
[358084126,1744695933449,-1039.01,0.00045723,31]
[358084127,1744695933498,-1039.01,0.00045723,31]
[358084128,1744695933550,-1039.01,0.00045723,31]
[358084129,1744695933600,-1039.01,0.00045723,120]
[358084130,1744695933648,-1039.01,0.00045723,120]
[358084131,1744695933697,-1039.01,0.00045723,120]
[358084132,1744695933747,-1039.01,0.00045723,120]
[358084133,1744695933796,-1039.01,0.00045723,120]
[358084134,1744695933844,-500.0,0.00045723,31]
[358084135,1744695933893,-1039.01,0.00045723,120]
[358084136,1744695933944,-500.0,0.00045723,31]
[358084137,1744695933993,-1039.01,0.00045723,120]
[358084138,1744695934040,-500.0,0.00045723,31]
[358084139,1744695934089,-1039.01,0.00045723,120]
[358084140,1744695934137,-500.0,0.00045723,31]
[358084141,1744695934186,-500.0,0.00045723,31]
[358084142,1744695934235,-1039.01,0.00045723,120]
[358084143,1744695934283,-500.0,0.00045723,31]
[358084144,1744695934331,-1039.01,0.00045723,120]
[358084145,1744695934380,-500.0,0.00045723,31]
[358084146,1744695934427,-500.0,0.00045723,31]
[358084147,1744695934476,-1039.01,0.00045723,120]
[358084148,1744695934525,-500.0,0.00045723,31]
[358084149,1744695934574,-1039.01,0.00045723,120]
[358084150,1744695934622,-556.57219094,0.00045723,31]
[358084151,1744695934671,-510.67591356,0.00045723,31]
[358084152,1744695934721,-1039.01,0.00045723,120]
[358084153,1744695934768,-1039.07,0.00045723,120]
[358084154,1744695934816,-500.0,0.00045723,31]
[358084155,1744695934864,-500.0,0.00045723,31]
[358084156,1744695934912,-500.0,0.00045723,31]
[358084157,1744695934962,-500.0,0.00045723,31]
[358084158,1744695935010,-367.21,0.00045723,31]
[358084159,1744695935058,-875.58,0.00045723,31]
[358084160,1744695935108,-875.58,0.00045723,31]
[358084161,1744695935157,-875.58,0.00045723,31]
[358084162,1744695935206,-875.58,0.00045723,31]
[358084163,1744695935256,-875.58,0.00045723,31]
[358084164,1744695935304,-875.58,0.00045723,31]
[358084165,1744695935351,-875.58,0.00045723,31]
[358084166,1744695935397,-875.58,0.00045723,31]
[358084167,1744695935444,-875.58,0.00045723,31]
[358084168,1744695935493,-875.58,0.00045723,31]
[358084169,1744695935542,-875.58,0.00045723,120]
[358084170,1744695935591,-875.58,0.00045723,120]
[358084171,1744695935641,-875.58,0.00045723,120]
[358084172,1744695935690,-875.58,0.00045723,120]
[358084173,1744695935740,-875.58,0.00045723,120]
[358084174,1744695935788,-500.0,0.00045723,31]
[358084175,1744695935837,-500.93283329,0.00045723,31]
[358084176,1744695935886,-875.58,0.00045723,120]
[358084177,1744695935936,-875.58,0.00045723,120]
[358084178,1744695935988,-875.58,0.00045723,120]
[358084179,1744695936038,-875.58,0.00045723,120]
[358084180,1744695936087,-500.0,0.00045723,31]
[358084181,1744695936133,-875.58,0.00045723,120]
[358084182,1744695936181,-875.58,0.00045723,120]
[358084183,1744695936228,-875.58,0.00045723,120]
[358084184,1744695936276,-875.58,0.00045723,120]
[358084185,1744695936324,-875.7,0.00045723,120]
[358084186,1744695936374,-500.0,0.00045723,31]
[358084187,1744695936424,-500.0,0.00045723,31]
[358084188,1744695936473,-500.0,0.00045723,31]
[358084189,1744695936523,-500.0,0.00045723,31]
[358084190,1744695936572,-500.0,0.00045723,31]
[358084191,1744695936622,-500.0,0.00045723,31]
[358084192,1744695936671,-500.0,0.00045723,31]
[358084193,1744695936719,-500.0,0.00045723,31]
[358084194,1744695936959,-500.0,0.00045723,31]
[358084195,1744695937008,-500.0,0.00045723,31]
[358084196,1744695937059,-500.0,0.00045723,120]
[358084197,1744695937112,-500.0,0.00045723,120]
[358084198,1744695937164,-500.0,0.00045723,120]
[358084199,1744695937212,-500.0,0.00045723,120]
[358084200,1744695937259,-521.41777609,0.00045723,31]
[358084201,1744695937309,-500.0,0.00045723,120]
[358084202,1744695937357,-500.0,0.00045723,120]
[358084203,1744695937406,-388.1,0.00045723,120]
[358084204,1744695937455,-500.0,0.00045723,31]
[358084205,1744695937505,-695.48,0.00045723,31]
[358084206,1744695937554,-695.48,0.00045723,31]
[358084207,1744695937602,-695.48,0.00045723,31]
[358084208,1744695937652,-695.48,0.00045723,31]
[358084209,1744695937702,-695.48,0.00045723,31]
[358084210,1744695937751,-695.48,0.00045723,31]
[358084211,1744695937803,-695.48,0.00045723,31]
[358084212,1744695937853,-695.48,0.00045723,31]
[358084213,1744695937903,-500.0,0.00045723,31]
[358084214,1744695937955,-695.48,0.00045723,31]
[358084215,1744695938005,-500.0,0.00045723,31]
[358084216,1744695938055,-695.48,0.00045723,31]
[358084217,1744695938108,-500.0,0.00045723,31]
[358084218,1744695938160,-695.48,0.00045723,120]
[358084219,1744695938210,-695.48,0.00045723,120]
[358084220,1744695938259,-695.48,0.00045723,120]
[358084221,1744695938307,-695.48,0.00045723,120]
[358084222,1744695938356,-695.48,0.00045723,120]
[358084223,1744695938405,-695.48,0.00045723,120]
[358084224,1744695938454,-695.48,0.00045723,120]
[358084225,1744695938506,-695.48,0.00045723,120]
[358084226,1744695938558,-695.48,0.00045723,120]
[358084227,1744695938608,-695.48,0.00045723,120]
[358084228,1744695938657,-695.48,0.00045723,120]
[358084229,1744695938705,-695.48,0.00045723,120]
[358084230,1744695938753,-695.48,0.00045723,120]
[358084231,1744695938804,-695.51474503,0.00045723,120]
[358084232,1744695938854,-500.0,0.00045723,31]
[358084233,1744695938911,-500.0,0.00045723,31]
[358084234,1744695938960,-500.0,0.00045723,31]
[358084235,1744695939010,-500.0,0.00045723,31]
[358084236,1744695939059,-500.0,0.00045723,31]
[358084237,1744695939110,-500.0,0.00045723,31]
[358084238,1744695939160,-500.0,0.00045723,31]
[358084239,1744695939209,-500.0,0.00045723,31]
[358084240,1744695939257,-500.0,0.00045723,31]
[358084241,1744695939303,-500.0,0.00045723,31]
[358084242,1744695939350,-500.0,0.00045723,31]
[358084243,1744695939396,-500.0,0.00045723,120]
[358084244,1744695939443,-500.0,0.00045723,120]
[358084245,1744695939489,-500.0,0.00045723,120]
[358084246,1744695939536,-500.0,0.00045723,120]
[358084247,1744695939583,-500.0,0.00045723,120]
[358084248,1744695939631,-500.0,0.00045723,120]
[358084249,1744695939679,-500.0,0.00045723,120]
[358084250,1744695939728,-583.27002542,0.00045723,120]
[358084251,1744695939775,-500.0,0.00045723,31]
[358084252,1744695939823,-500.0,0.00045723,31]
[358084253,1744695939869,-500.0,0.00045723,31]
[358084254,1744695939916,-500.0,0.00045723,31]
[358084255,1744695939963,-500.0,0.00045723,31]
[358084256,1744695940011,-500.0,0.00045723,31]
[358084257,1744695940058,-500.0,0.00045723,31]
[358084258,1744695940106,-500.0,0.00045723,31]
[358084259,1744695940155,-500.0,0.00045723,31]
[358084260,1744695940206,-500.0,0.00045723,31]
[358084261,1744695940255,-500.0,0.00045723,31]
[358084262,1744695940305,-500.0,0.00045723,31]
[358084263,1744695940353,-500.0,0.00045723,120]
[358084264,1744695940398,-500.0,0.00045723,31]
[358084265,1744695940444,-500.0,0.00045723,120]
[358084266,1744695940492,-500.0,0.00045723,31]
[358084267,1744695940540,-500.0,0.00045723,120]
[358084268,1744695940589,-500.0,0.00045723,31]
[358084269,1744695940638,-384.55,0.00045723,120]
[358084270,1744695940686,-500.0,0.00045723,31]
[358084271,1744695940732,-500.0,0.00045723,31]
[358084272,1744695940779,-500.0,0.00045723,31]
[358084273,1744695940825,-500.0,0.00045723,31]
[358084274,1744695940872,-500.0,0.00045723,31]
[358084275,1744695940918,-500.0,0.00045723,31]
[358084276,1744695940966,-500.0,0.00045723,31]
[358084277,1744695941013,-500.0,0.00045723,120]
[358084278,1744695941060,-500.0,0.00045723,120]
[358084279,1744695941107,-500.0,0.00045723,120]
[358084280,1744695941155,-500.0,0.00045723,120]
[358084281,1744695941203,-500.0,0.00045723,120]
[358084282,1744695941252,-500.0,0.00045723,30]
[358084283,1744695941299,-500.0,0.00045723,120]
[358084284,1744695941346,-500.0,0.00045723,31]
[358084285,1744695941392,-500.0,0.00045723,30]
[358084286,1744695941438,-500.0,0.00045723,31]
[358084287,1744695941485,-522.63158547,0.00045723,30]
[358084288,1744695941684,-500.0,0.00045723,31]
[358084289,1744695941762,-500.0,0.00045723,31]
[358084290,1744695941811,-500.0,0.00045723,31]
[358084291,1744695941857,-500.0,0.00045723,31]
[358084292,1744695941904,-500.0,0.00045723,31]
[358084293,1744695941954,-873.12,0.00045723,31]
[358084294,1744695942002,-873.12,0.00045723,31]
[358084295,1744695942051,-500.0,0.00045723,31]
[358084296,1744695942101,-873.12,0.00045723,31]
[358084297,1744695942150,-500.0,0.00045723,31]
[358084298,1744695942199,-873.12,0.00045723,31]
[358084299,1744695942248,-500.0,0.00045723,31]
[358084300,1744695942296,-782.89277301,0.00045723,31]
[358084337,1744696232367,-2816.53095244,0.00025608,2]
[358084339,1744696232379,-389.81896244,0.00025608,2]
[358084341,1744696232391,-591.96105572,0.00025608,2]
[358084343,1744696232400,-245.673645,0.00025666,2]
[358084345,1744696232410,-825.9452109,0.00025708,2]
[358084347,1744696232419,-954.724805,0.0002583,2]
[358084349,1744696232429,-300.0,0.00026127,2]
[358084351,1744696232438,-160.0,0.00026128,2]
[358084352,1744696232447,-420.08908737,0.00026128,2]
[358084354,1744696232457,-838.71732705,0.00026128,2]
[358084356,1744696232466,-160.0,0.00026128,2]
[358084358,1744696232476,-381.39078186,0.000265,2]
[358084361,1744696232485,-156.8657715,0.000265,2]
[358084362,1744696232495,-156.1825083,0.000265,2]
[358084364,1744696232504,-300.0,0.00026573,2]
[358084366,1744696232514,-213.6678568,0.000266,2]
[358084368,1744696232523,-156.6056338,0.000266,2]
[358084369,1744696232533,-153.0,0.000266,2]
[358084370,1744696232542,-153.0,0.000266,2]
[358084372,1744696232551,-156.8657715,0.000266,2]
[358084374,1744696232560,-160.3383854,0.000266,2]
[358084375,1744696232570,-186.0,0.000267,2]
[358084376,1744696232580,-192.0,0.000267,3]
[358084378,1744696232589,-1946.7245653,0.00026712,4]
[358084380,1744696232598,-152.0,0.00026795,2]
[358084382,1744696232608,-2475.9305151,0.00026798,2]
[358084384,1744696232617,-183.7019372,0.00026799,2]
[358084386,1744696232626,-176.88659458,0.00026799,2]
[358084388,1744696232637,-517.3809515,0.00026804,2]
[358084390,1744696232647,-500.0,0.00026845,2]
[358084391,1744696232656,-151.0,0.00026884,2]
[358084393,1744696232666,-3191.22288333,0.0002689,2]
[358084395,1744696232675,-550.5483795,0.0002689,2]
[358084397,1744696232685,-500.0,0.00026897,2]
[358084399,1744696232695,-500.0,0.00026897,2]
[358084401,1744696232704,-500.89018054,0.00026897,2]
[358084403,1744696232713,-501.33921974,0.00026897,2]
[358084405,1744696232723,-500.0,0.00026897,2]
[358084407,1744696232732,-189.14356478,0.00026897,2]
[358084408,1744696232741,-502.14922015,0.00026897,2]
[358084410,1744696232751,-500.0,0.00026897,2]
[358084412,1744696232760,-500.0,0.00026897,2]
[358084414,1744696232769,-247.70992754,0.00026897,2]
[358084416,1744696232779,-500.0,0.00026897,2]
[358084418,1744696232788,-507.03440581,0.00026898,2]
[358084420,1744696232798,-1088.22,0.00026898,2]
[358084422,1744696232808,-512.80038774,0.00026898,2]
[358084424,1744696232818,-504.71060265,0.00026898,2]
[358084426,1744696232827,-500.0,0.00026898,2]
[358084427,1744696232836,-511.51661677,0.00026898,2]
[358084429,1744696232845,-517.84671934,0.00026898,2]
[358084431,1744696232855,-513.03776877,0.00026898,2]
[358084433,1744696232865,-500.0,0.00026898,2]
[358084435,1744696232876,-532.1609305,0.00026898,2]
[358084436,1744696232885,-542.21110959,0.00026898,2]
[358084437,1744696232895,-815.72,0.00026898,2]
[358084438,1744696232904,-641.22611222,0.00026898,2]
[358084439,1744696232913,-502.22799811,0.00026898,2]
[358084440,1744696232922,-500.0,0.00026898,2]
[358084441,1744696232931,-504.13614697,0.00026898,2]
[358084442,1744696232940,-500.0,0.00026898,2]
[358084443,1744696232949,-500.0,0.00026898,2]
[358084444,1744696232958,-500.0,0.00026898,2]
[358084445,1744696232967,-500.0,0.00026898,2]
[358084446,1744696232976,-505.28383709,0.00026898,2]
[358084447,1744696232988,-500.0,0.00026898,2]
[358084448,1744696232997,-504.24331501,0.00026898,2]
[358084449,1744696233006,-503.82126017,0.00026898,2]
[358084450,1744696233015,-500.0,0.00026898,2]
[358084451,1744696233024,-514.62508614,0.00026898,2]
[358084452,1744696233034,-898.56,0.00026898,2]
[358084453,1744696233043,-502.82271921,0.00026898,2]
[358084454,1744696233052,-500.0,0.00026898,2]
[358084455,1744696233062,-501.19156446,0.00026898,2]
[358084456,1744696233072,-500.0,0.00026898,2]
[358084463,1744696233325,-500.5577889,0.00026898,2]
[358084464,1744696233336,-500.0,0.00026898,2]
[358084465,1744696233346,-1384.16,0.00026898,2]
[358084466,1744696233358,-509.5849569,0.00026898,2]
[358084467,1744696233369,-511.72181897,0.00026898,2]
[358084468,1744696233380,-500.79410543,0.00026898,2]
[358084469,1744696233391,-507.99458527,0.00026898,2]
[358084470,1744696233401,-585.94814059,0.00026898,2]
[358084471,1744696233411,-500.0,0.00026898,2]
[358084472,1744696233421,-500.0,0.00026898,2]
[358084473,1744696233431,-543.02,0.00026898,2]
[358084474,1744696233441,-969.88,0.00026898,2]
[358084475,1744696233451,-506.13254504,0.00026898,2]
[358084476,1744696233460,-501.0001244,0.00026898,2]
[358084477,1744696233470,-811.93,0.00026898,2]
[358084478,1744696233479,-507.43433809,0.00026898,2]
[358084479,1744696233490,-506.11749463,0.00026898,2]
[358084480,1744696233499,-511.30141623,0.00026898,2]
[358084481,1744696233508,-2763.92933449,0.00026898,2]
[358084482,1744696233521,-674.93676935,0.00026898,2]
[358084483,1744696233551,-2283.98389616,0.00026898,2]
[358084484,1744696233561,-1243.83,0.00026898,2]
[358084485,1744696233571,-502.60783374,0.00026898,2]
[358084486,1744696233581,-500.0,0.00026898,2]
[358084487,1744696233591,-211.504783,0.00026898,2]
[358084488,1744696233601,-504.16643222,0.00026898,2]
[358084489,1744696233610,-500.0,0.00026898,2]
[358084490,1744696233620,-506.43655059,0.00026898,2]
[358084491,1744696233629,-506.28908815,0.00026898,2]
[358084492,1744696233639,-501.54252726,0.00026898,2]
[358084493,1744696233648,-500.0,0.00026898,2]
[358084494,1744696233658,-505.22009912,0.00026898,2]
[358084495,1744696233668,-502.50230404,0.00026898,2]
[358084496,1744696233677,-500.0,0.00026898,2]
[358084497,1744696233687,-500.0,0.00026898,2]
[358084498,1744696233696,-500.0,0.00026898,2]
[358084499,1744696233705,-500.0,0.00026898,2]
[358084500,1744696233714,-500.93279992,0.00026898,2]
[358084501,1744696233722,-500.9024669,0.00026898,2]
[358084502,1744696233732,-626.39,0.00026898,2]
[358084503,1744696233740,-500.0,0.00026898,2]
[358084504,1744696233749,-505.33232138,0.00026898,2]
[358084505,1744696233758,-500.0,0.00026898,2]
[358084506,1744696233767,-147.05468472,0.00026898,2]
[358084558,1744696238630,-183.7019372,0.00026803,2]
[358084561,1744696238640,-183.7019372,0.00026897,2]
[358084563,1744696238649,-176.88659458,0.00026897,2]
[358084565,1744696238659,-983.06350664,0.00026897,2]
[358084567,1744696238668,-500.0,0.00026897,2]
[358084569,1744696238677,-511.92861377,0.00026897,2]
[358084571,1744696238686,-356.2845352,0.00026898,2]
[358084573,1744696238695,-500.0,0.00026898,2]
[358084575,1744696238704,-600.16969337,0.00026898,2]
[358084577,1744696238714,-419.88910597,0.00026898,2]
[358084579,1744696238725,-500.0,0.00026898,2]
[358084581,1744696238735,-585.05,0.00026898,2]
[358084583,1744696238745,-500.0,0.00026898,2]
[358084585,1744696238755,-508.25346202,0.00026898,2]
[358084587,1744696238765,-14326.14,0.00026898,2]
[358084589,1744696238775,-500.0,0.00026898,2]
[358084591,1744696238785,-1589.01,0.00026898,2]
[358084593,1744696238795,-503.98277659,0.00026898,2]
[358084595,1744696238806,-500.0,0.00026898,2]
[358084597,1744696238815,-4497.68,0.00026898,2]
[358084599,1744696238826,-504.8298821,0.00026898,2]
[358084601,1744696238835,-500.0,0.00026898,2]
[358084603,1744696238845,-500.0,0.00026898,2]
[358084605,1744696238855,-1063.43,0.00026898,2]
[358084607,1744696238864,-581.47,0.00026898,2]
[358084609,1744696238873,-504.30863639,0.00026898,2]
[358084611,1744696238883,-500.0,0.00026898,2]
[358084613,1744696238892,-581.37,0.00026898,2]
[358084615,1744696238902,-853.3,0.00026898,2]
[358084617,1744696238912,-500.0,0.00026898,2]
[358084619,1744696238922,-500.0,0.00026898,2]
[358084621,1744696238931,-1728.41,0.00026898,2]
[358084623,1744696238941,-500.0,0.00026898,2]
[358084625,1744696238950,-590.39831385,0.00026898,2]
[358084627,1744696238960,-500.0,0.00026898,2]
[358084629,1744696238970,-500.0,0.00026898,2]
[358084631,1744696238979,-1637.62,0.00026898,2]
[358084633,1744696238989,-594.03924413,0.00026898,2]
[358085311,1744697432770,-300.0,0.00025152,2]
[358085312,1744697432782,-300.0,0.00025152,2]
[358085313,1744697432792,-500.0,0.00025153,2]
[358085314,1744697432802,-500.0,0.00025153,2]
[358085315,1744697432811,-500.0,0.00025153,2]
[358085316,1744697432822,-500.0,0.00025153,2]
[358085317,1744697432831,-500.0,0.00025153,2]
[358085318,1744697432841,-500.0,0.00025153,2]
[358085319,1744697432852,-500.0,0.00025153,2]
[358085320,1744697432862,-500.0,0.00025153,2]
[358085321,1744697432872,-500.0,0.00025153,2]
[358085322,1744697432882,-500.0,0.00025153,2]
[358085323,1744697432892,-366.65045824,0.00025153,2]
[358085324,1744697432902,-500.0,0.00025153,2]
[358085325,1744697432911,-2108.83451205,0.00025154,2]
[358085374,1744697438797,-500.0,0.00025153,2]
[358085376,1744697438807,-504.21566316,0.00025153,2]
[358085378,1744697438817,-245.673645,0.00025154,2]
[358085380,1744697438826,-2470.82950268,0.000252,2]
[358085382,1744697438836,-1201.9951355,0.00025222,2]
[358085384,1744697438845,-2623.74444407,0.000253,2]
[358085386,1744697438855,-449.728816,0.000254,30]
[358085388,1744697438867,-500.0,0.00025426,2]
[358085390,1744697438877,-500.0,0.00025427,2]
[358085392,1744697438887,-500.0,0.00025427,2]
[358085394,1744697438897,-500.0,0.00025427,2]
[358085396,1744697438907,-500.0,0.00025427,2]
[358085397,1744697438917,-500.0,0.00025427,2]
[358085399,1744697438926,-500.0,0.00025427,2]
[358085401,1744697438937,-500.0,0.00025427,2]
[358085403,1744697438947,-500.0,0.00025427,2]
[358085405,1744697438956,-500.0,0.00025427,2]
[358085407,1744697438966,-500.0,0.00025427,2]
[358085409,1744697438975,-500.0,0.00025427,2]
[358085411,1744697438985,-6949.3543434,0.00025563,2]
[358085413,1744697438995,-428.705296,0.00025566,2]
[358085415,1744697439004,-500.0,0.00025566,2]
[358085417,1744697439014,-500.0,0.00025701,2]
[358085419,1744697439023,-500.0,0.00025701,2]
[358085423,1744697439033,-500.0,0.00025701,2]
[358085426,1744697439042,-500.0,0.00025701,2]
[358085429,1744697439051,-500.0,0.00025701,2]
[358085431,1744697439061,-545.51796527,0.00025701,2]
[358085433,1744697439071,-500.0,0.00025701,2]
[358085435,1744697439080,-500.0,0.00025701,2]
[358085437,1744697439089,-500.0,0.00025701,2]
[358085439,1744697439099,-433.70566558,0.00025701,2]
[358085441,1744697439109,-208.84989201,0.00025701,2]
[358085443,1744697439118,-2630.00000785,0.000259,6]
[358085445,1744697439128,-500.0,0.00025975,2]
[358085447,1744697439137,-500.0,0.00025975,2]
[358085449,1744697439147,-500.0,0.00025975,2]
[358085451,1744697439156,-208.87556238,0.00025975,2]
[358085453,1744697439166,-587.21491821,0.00025975,2]
[358085455,1744697439175,-500.0,0.00025975,2]
[358085457,1744697439184,-500.0,0.00025975,2]
[358085459,1744697439193,-500.0,0.00025975,2]
[358085461,1744697439203,-152.0,0.00026089,2]
[358085463,1744697439212,-500.0,0.00026248,2]
[358085465,1744697439222,-500.0,0.00026249,2]
[358085467,1744697439233,-589.30162465,0.00026249,2]
[358085469,1744697439243,-500.0,0.00026249,2]
[358085471,1744697439252,-500.0,0.00026249,2]
[358085474,1744697439262,-500.0,0.00026249,2]
[358085476,1744697439271,-500.0,0.00026249,2]
[358085478,1744697439280,-500.0,0.00026523,2]
[358085480,1744697439290,-500.0,0.00026523,2]
[358085482,1744697439299,-500.0,0.00026523,2]
[358085484,1744697439308,-500.0,0.00026523,2]
[358085485,1744697439317,-500.0,0.00026523,2]
[358085487,1744697439328,-483.84463418,0.00026694,2]
[358085489,1744697439337,-933.59690465,0.0002671,2]
[358085492,1744697439347,-155.98870753,0.0002671,2]
[358085494,1744697439356,-500.0,0.0002671,2]
[358085496,1744697439368,-500.0,0.0002671,2]
[358085498,1744697439377,-500.0,0.00026711,2]
[358085499,1744697439386,-500.0,0.00026711,2]
[358085500,1744697439395,-6987.57,0.00026711,2]
[358085501,1744697439404,-500.0,0.00026711,2]
[358085502,1744697439413,-500.0,0.00026711,2]
[358085503,1744697439423,-500.0,0.00026711,2]
[358085504,1744697439432,-500.0,0.00026711,2]
[358085505,1744697439441,-500.0,0.00026711,2]
[358085506,1744697439450,-861.12,0.00026711,2]
[358085507,1744697439460,-500.0,0.00026711,2]
[358085508,1744697439469,-500.0,0.00026711,2]
[358085509,1744697439484,-520.39,0.00026711,2]
[358085510,1744697439493,-1192.01,0.00026711,2]
[358085511,1744697439502,-5484.4,0.00026711,2]
[358085512,1744697439511,-2125.4,0.00026711,2]
[358085513,1744697439520,-600.29,0.00026711,2]
[358085514,1744697439528,-500.0,0.00026711,2]
[358085515,1744697439537,-500.0,0.00026711,2]
[358085516,1744697439547,-11143.96781893,0.00026711,2]
[358085518,1744697439585,-500.0,0.00025153,2]
[358085520,1744697439594,-346.1,0.00026711,2]
[358085530,1744697439689,-4432.53218107,0.00026711,2]
[358085532,1744697439701,-500.0,0.00026711,2]
[358085534,1744697439711,-500.0,0.00026711,2]
[358085536,1744697439722,-500.0,0.00026711,2]
[358085538,1744697439731,-3762.17,0.00026711,2]
[358085540,1744697439741,-557.15,0.00026711,2]
[358085542,1744697439751,-2511.85,0.00026711,2]
[358085544,1744697439761,-302.15133908,0.00026711,2]
[358085796,1744697446809,-554.26825355,0.00025153,2]
[358085798,1744697446820,-500.0,0.00025153,2]
[358085800,1744697447049,-512.91509891,0.00025153,2]
[358085802,1744697447060,-500.0,0.00025427,2]
[358085804,1744697447070,-500.0,0.00025701,2]
[358085806,1744697447080,-500.0,0.00025975,2]
[358085808,1744697447090,-500.0,0.00026249,2]
[358085809,1744697447099,-500.0,0.00026523,2]
[358085810,1744697447109,-868.22866092,0.00026711,2]
[358085811,1744697447120,-1935.61,0.00026711,2]
[358085812,1744697447130,-949.23,0.00026711,2]
[358085813,1744697447140,-500.0,0.00026711,2]
[358085814,1744697447150,-707.28,0.00026711,2]
[358085815,1744697447160,-707.28,0.00026711,2]
[358085816,1744697447170,-500.0,0.00026711,2]
[358085817,1744697447180,-500.0,0.00026711,2]
[358085818,1744697447190,-1460.0434239,0.00026712,4]
[358085819,1744697447201,-500.0,0.00026719,2]
[358085820,1744697447210,-500.0,0.00026719,2]
[358085821,1744697447220,-500.0,0.00026719,2]